[Event "Titled Tuesday Blitz April 25 Early 2023"]
[White "Semenova, Alina"]
[Black "Lach, Aleksandra"]
[WhiteFideId "24113875"]
[BlackFideId "1134299"]
[WhiteElo "1833"]
[BlackElo "2111"]
[Result "0-1"]
[Round "03"]
[TimeControl "180+2"]
[Date "2023.04.25"]
[WhiteClock "0:00:01"]
[BlackClock "0:00:11"]

1. e4 {[%clk 0:03:00]}  c5 {[%clk 0:02:56]} 2. Nf3 {[%clk 0:03:00]}  a6 {[%clk 0:02:54]} 3. d4 {[%clk 0:03:00]}  cxd4 {[%clk 0:02:54]} 4. Nxd4 {[%clk 0:03:01]}  Nf6 {[%clk 0:02:54]} 5. Nc3 {[%clk 0:03:01]}  e5 {[%clk 0:02:54]} 6. Nb3 {[%clk 0:02:54]}  Bb4 {[%clk 0:02:54]} 7. f3 {[%clk 0:02:53]}  d5 {[%clk 0:02:41]} 8. exd5 {[%clk 0:02:45]}  Bxc3+ {[%clk 0:02:25]} 9. bxc3 {[%clk 0:02:43]}  Qxd5 {[%clk 0:02:25]} 10. Qxd5 {[%clk 0:02:39]}  Nxd5 {[%clk 0:02:26]} 11. Bd2 {[%clk 0:02:40]}  Bf5 {[%clk 0:02:21]} 12. Bd3 {[%clk 0:02:36]}  Bxd3 {[%clk 0:02:20]} 13. cxd3 {[%clk 0:02:37]}  O-O {[%clk 0:02:20]} 14. O-O {[%clk 0:02:36]}  Rd8 {[%clk 0:02:18]} 15. d4 {[%clk 0:02:23]}  Nc6 {[%clk 0:02:17]} 16. Rad1 {[%clk 0:02:18]}  Nb6 {[%clk 0:02:12]} 17. Bc1 {[%clk 0:01:56]}  Nc4 {[%clk 0:01:50]} 18. Rfe1 {[%clk 0:01:49]}  f6 {[%clk 0:01:48]} 19. Kf2 {[%clk 0:01:46]}  b5 {[%clk 0:01:45]} 20. d5 {[%clk 0:01:42]}  Ne7 {[%clk 0:01:44]} 21. d6 {[%clk 0:01:34]}  Nxd6 {[%clk 0:01:31]} 22. Ba3 {[%clk 0:01:31]}  Nef5 {[%clk 0:01:10]} 23. g4 {[%clk 0:01:30]}  Nc4 {[%clk 0:01:10]} 24. Bc5 {[%clk 0:01:23]}  Nfd6 {[%clk 0:00:58]} 25. Rd5 {[%clk 0:01:00]}  Nb7 {[%clk 0:00:42]} 26. Red1 {[%clk 0:00:55]}  Rxd5 {[%clk 0:00:37]} 27. Rxd5 {[%clk 0:00:56]}  Rd8 {[%clk 0:00:37]} 28. Rxd8+ {[%clk 0:00:50]}  Nxd8 {[%clk 0:00:38]} 29. Ke2 {[%clk 0:00:46]}  Kf7 {[%clk 0:00:38]} 30. Kd3 {[%clk 0:00:29]}  Ke6 {[%clk 0:00:38]} 31. Be3 {[%clk 0:00:22]}  Nb7 {[%clk 0:00:31]} 32. Bf2 {[%clk 0:00:17]}  Kd5 {[%clk 0:00:31]} 33. h4 {[%clk 0:00:15]}  g6 {[%clk 0:00:30]} 34. h5 {[%clk 0:00:14]}  f5 {[%clk 0:00:29]} 35. hxg6 {[%clk 0:00:11]}  hxg6 {[%clk 0:00:29]} 36. gxf5 {[%clk 0:00:12]}  gxf5 {[%clk 0:00:30]} 37. Nc1 {[%clk 0:00:07]}  Nbd6 {[%clk 0:00:20]} 38. Ke2 {[%clk 0:00:06]}  Nb2 {[%clk 0:00:17]} 39. Nb3 {[%clk 0:00:04]}  Na4 {[%clk 0:00:16]} 40. Nc1 {[%clk 0:00:04]}  Nxc3+ {[%clk 0:00:15]} 41. Kd3 {[%clk 0:00:04]}  Na4 {[%clk 0:00:15]} 42. Kc2 {[%clk 0:00:03]}  Nc4 {[%clk 0:00:15]} 43. Ne2 {[%clk 0:00:02]}  Nc5 {[%clk 0:00:14]} 44. Nc3+ {[%clk 0:00:02]}  Kc6 {[%clk 0:00:14]} 45. Ne2 {[%clk 0:00:02]}  Ne6 {[%clk 0:00:13]} 46. Kc3 {[%clk 0:00:02]}  a5 {[%clk 0:00:11]} 47. a4 {[%clk 0:00:01]}  Nd6 {[%clk 0:00:11]} 0-1


[Site "https://www.chess.com"]

[Event "Titled Tuesday Blitz April 25 Early 2023"]
[White "Maevsky, Nikolay"]
[Black "Sovetbekova, Nurai"]
[WhiteFideId "4198220"]
[BlackFideId "13801910"]
[WhiteElo "2021"]
[BlackElo "1857"]
[Result "1-0"]
[Round "03"]
[TimeControl "180+2"]
[Date "2023.04.25"]
[WhiteClock "0:01:34"]
[BlackClock "0:00:11"]

1. d4 {[%clk 0:03:00]}  Nf6 {[%clk 0:02:58]} 2. c4 {[%clk 0:02:58]}  g6 {[%clk 0:02:59]} 3. Nc3 {[%clk 0:02:58]}  d5 {[%clk 0:02:59]} 4. cxd5 {[%clk 0:02:56]}  Nxd5 {[%clk 0:02:59]} 5. e4 {[%clk 0:02:56]}  Nxc3 {[%clk 0:03:00]} 6. bxc3 {[%clk 0:02:57]}  Bg7 {[%clk 0:03:00]} 7. Bg5 {[%clk 0:02:57]}  c5 {[%clk 0:02:59]} 8. Rc1 {[%clk 0:02:57]}  Qa5 {[%clk 0:02:52]} 9. Qd2 {[%clk 0:02:55]}  cxd4 {[%clk 0:02:31]} 10. cxd4 {[%clk 0:02:55]}  Qxd2+ {[%clk 0:02:32]} 11. Kxd2 {[%clk 0:02:54]}  Nc6 {[%clk 0:02:32]} 12. d5 {[%clk 0:02:53]}  Ne5 {[%clk 0:02:22]} 13. f4 {[%clk 0:02:50]}  Nd7 {[%clk 0:02:10]} 14. Nf3 {[%clk 0:02:43]}  h6 {[%clk 0:02:05]} 15. Bh4 {[%clk 0:02:43]}  Nf6 {[%clk 0:02:02]} 16. Bxf6 {[%clk 0:02:37]}  Bxf6 {[%clk 0:02:00]} 17. e5 {[%clk 0:02:37]}  Bg7 {[%clk 0:02:00]} 18. Bb5+ {[%clk 0:02:34]}  Bd7 {[%clk 0:01:59]} 19. a4 {[%clk 0:02:31]}  a6 {[%clk 0:01:55]} 20. Bxd7+ {[%clk 0:02:30]}  Kxd7 {[%clk 0:01:55]} 21. Ke3 {[%clk 0:02:28]}  Rhc8 {[%clk 0:01:52]} 22. a5 {[%clk 0:02:26]}  f6 {[%clk 0:01:35]} 23. g4 {[%clk 0:02:22]}  fxe5 {[%clk 0:01:32]} 24. fxe5 {[%clk 0:02:19]}  e6 {[%clk 0:01:29]} 25. Ke4 {[%clk 0:02:18]}  exd5+ {[%clk 0:01:25]} 26. Kxd5 {[%clk 0:02:18]}  Ke7 {[%clk 0:01:21]} 27. Nd4 {[%clk 0:02:17]}  Rd8+ {[%clk 0:01:13]} 28. Ke4 {[%clk 0:02:18]}  Rd7 {[%clk 0:01:08]} 29. Rc4 {[%clk 0:02:14]}  Rad8 {[%clk 0:01:02]} 30. Rb1 {[%clk 0:02:13]}  Rf8 {[%clk 0:00:28]} 31. Rb6 {[%clk 0:02:11]}  Rf1 {[%clk 0:00:26]} 32. Rxg6 {[%clk 0:01:50]}  Re1+ {[%clk 0:00:23]} 33. Kf3 {[%clk 0:01:50]}  Bxe5 {[%clk 0:00:21]} 34. Nf5+ {[%clk 0:01:38]}  Kf7 {[%clk 0:00:21]} 35. Rxh6 {[%clk 0:01:38]}  Rf1+ {[%clk 0:00:16]} 36. Kg2 {[%clk 0:01:35]}  Ra1 {[%clk 0:00:15]} 37. Rh7+ {[%clk 0:01:35]}  Ke8 {[%clk 0:00:14]} 38. Rc8+ {[%clk 0:01:34]}  Rd8 {[%clk 0:00:13]} 39. Re7+ {[%clk 0:01:34]}  Kf8 {[%clk 0:00:11]} 40. Rxd8# {[%clk 0:01:34]} 1-0


[Site "https://www.chess.com"]

[Event "Titled Tuesday Blitz April 25 Early 2023"]
[White "Kvaloy, Aksel Bu"]
[Black "Derichs, Roger"]
[WhiteFideId "1528815"]
[BlackFideId "4630076"]
[WhiteElo "2208"]
[BlackElo "2334"]
[Result "1-0"]
[Round "03"]
[TimeControl "180+2"]
[Date "2023.04.25"]
[WhiteClock "0:01:41"]
[BlackClock "0:00:29"]

1. e4 {[%clk 0:03:00]}  e6 {[%clk 0:02:59]} 2. d4 {[%clk 0:02:59]}  d5 {[%clk 0:03:00]} 3. Nc3 {[%clk 0:02:58]}  Bb4 {[%clk 0:03:00]} 4. Bd2 {[%clk 0:02:57]}  dxe4 {[%clk 0:02:57]} 5. Qg4 {[%clk 0:02:54]}  Qxd4 {[%clk 0:02:48]} 6. Nf3 {[%clk 0:02:52]}  Qf6 {[%clk 0:02:37]} 7. Nd5 {[%clk 0:02:50]}  Bxd2+ {[%clk 0:02:24]} 8. Nxd2 {[%clk 0:02:29]}  exd5 {[%clk 0:02:03]} 9. Qxc8+ {[%clk 0:02:26]}  Qd8 {[%clk 0:01:59]} 10. Qxb7 {[%clk 0:02:27]}  Nd7 {[%clk 0:01:54]} 11. Qxd5 {[%clk 0:02:25]}  Ngf6 {[%clk 0:01:54]} 12. Qd4 {[%clk 0:02:25]}  O-O {[%clk 0:01:48]} 13. O-O-O {[%clk 0:02:24]}  c5 {[%clk 0:01:46]} 14. Qe3 {[%clk 0:02:21]}  Qa5 {[%clk 0:01:41]} 15. Kb1 {[%clk 0:02:17]}  Rab8 {[%clk 0:01:36]} 16. Bc4 {[%clk 0:02:16]}  Nb6 {[%clk 0:01:33]} 17. Bb3 {[%clk 0:02:12]}  Qb5 {[%clk 0:01:23]} 18. c4 {[%clk 0:01:52]}  Qc6 {[%clk 0:01:23]} 19. Rhe1 {[%clk 0:01:52]}  Rfe8 {[%clk 0:01:20]} 20. Bc2 {[%clk 0:01:50]}  h6 {[%clk 0:01:07]} 21. Nxe4 {[%clk 0:01:48]}  Nxe4 {[%clk 0:00:42]} 22. Bxe4 {[%clk 0:01:49]}  Nxc4 {[%clk 0:00:30]} 23. Bxc6 {[%clk 0:01:44]}  Nxe3 {[%clk 0:00:29]} 24. fxe3 {[%clk 0:01:41]} 1-0


[Site "https://www.chess.com"]

[Event "Titled Tuesday Blitz April 25 Early 2023"]
[White "mohsengabr2002"]
[Black "Alinasab, Mobina"]
[BlackFideId "12528897"]
[WhiteElo "2334"]
[BlackElo "2149"]
[Result "0-1"]
[Round "03"]
[TimeControl "180+2"]
[Date "2023.04.25"]
[WhiteClock "0:01:50"]
[BlackClock "0:01:47"]

1. g3 {[%clk 0:02:59]}  e5 {[%clk 0:02:59]} 2. f3 {[%clk 0:02:59]}  d6 {[%clk 0:02:59]} 3. e3 {[%clk 0:02:59]}  g6 {[%clk 0:02:59]} 4. d3 {[%clk 0:02:59]}  Bg7 {[%clk 0:03:00]} 5. c3 {[%clk 0:02:59]}  Ne7 {[%clk 0:03:01]} 6. Nh3 {[%clk 0:03:00]}  O-O {[%clk 0:03:02]} 7. Nf2 {[%clk 0:03:01]}  f5 {[%clk 0:03:02]} 8. f4 {[%clk 0:03:01]}  b6 {[%clk 0:02:58]} 9. Bg2 {[%clk 0:03:01]}  Nbc6 {[%clk 0:02:58]} 10. a4 {[%clk 0:02:55]}  Bb7 {[%clk 0:02:58]} 11. O-O {[%clk 0:02:55]}  Qd7 {[%clk 0:02:52]} 12. Na3 {[%clk 0:02:53]}  Na5 {[%clk 0:02:49]} 13. e4 {[%clk 0:02:36]}  exf4 {[%clk 0:02:47]} 14. Bxf4 {[%clk 0:02:35]}  fxe4 {[%clk 0:02:46]} 15. Nxe4 {[%clk 0:02:35]}  Nd5 {[%clk 0:02:42]} 16. Nf2 {[%clk 0:02:28]}  Nxf4 {[%clk 0:02:40]} 17. Bxb7 {[%clk 0:02:25]}  Nxb7 {[%clk 0:02:35]} 18. gxf4 {[%clk 0:02:23]}  Rxf4 {[%clk 0:02:35]} 19. Qb3+ {[%clk 0:02:16]}  Kh8 {[%clk 0:02:32]} 20. Ne4 {[%clk 0:02:09]}  Qg4+ {[%clk 0:02:12]} 21. Kh1 {[%clk 0:02:08]}  Raf8 {[%clk 0:02:09]} 22. Rxf4 {[%clk 0:02:02]}  Rxf4 {[%clk 0:02:10]} 23. Qd5 {[%clk 0:01:54]}  Qf3+ {[%clk 0:01:48]} 24. Kg1 {[%clk 0:01:51]}  Rg4+ {[%clk 0:01:48]} 25. Ng3 {[%clk 0:01:50]}  Qxd5 {[%clk 0:01:47]} 0-1


[Site "https://www.chess.com"]

[Event "Titled Tuesday Blitz April 25 Early 2023"]
[White "crosky"]
[Black "Bilan, Danila"]
[BlackFideId "24161918"]
[WhiteElo "2332"]
[BlackElo "2182"]
[Result "0-1"]
[Round "03"]
[TimeControl "180+2"]
[Date "2023.04.25"]
[WhiteClock "0:00:03"]
[BlackClock "0:00:07"]

1. c4 {[%clk 0:03:00]}  c6 {[%clk 0:03:00]} 2. Nf3 {[%clk 0:03:00]}  d5 {[%clk 0:03:01]} 3. e3 {[%clk 0:03:01]}  Nf6 {[%clk 0:03:00]} 4. Nc3 {[%clk 0:03:02]}  e6 {[%clk 0:03:00]} 5. d4 {[%clk 0:03:01]}  Nbd7 {[%clk 0:03:01]} 6. Qc2 {[%clk 0:03:02]}  Bd6 {[%clk 0:03:00]} 7. g4 {[%clk 0:03:03]}  dxc4 {[%clk 0:02:40]} 8. Bxc4 {[%clk 0:03:04]}  Nd5 {[%clk 0:02:40]} 9. Bd2 {[%clk 0:02:42]}  b5 {[%clk 0:02:26]} 10. Ne4 {[%clk 0:02:40]}  Be7 {[%clk 0:02:10]} 11. Be2 {[%clk 0:02:28]}  Bb7 {[%clk 0:02:00]} 12. Rg1 {[%clk 0:02:22]}  O-O {[%clk 0:01:40]} 13. g5 {[%clk 0:02:17]}  Qb6 {[%clk 0:01:27]} 14. Ne5 {[%clk 0:01:48]}  Rfd8 {[%clk 0:01:05]} 15. Bh5 {[%clk 0:01:08]}  Nxe5 {[%clk 0:00:41]} 16. dxe5 {[%clk 0:01:07]}  g6 {[%clk 0:00:41]} 17. Nf6+ {[%clk 0:01:04]}  Kg7 {[%clk 0:00:22]} 18. Rg3 {[%clk 0:00:40]}  Qc7 {[%clk 0:00:13]} 19. f4 {[%clk 0:00:38]}  Bb4 {[%clk 0:00:10]} 20. O-O-O {[%clk 0:00:15]}  Bxd2+ {[%clk 0:00:10]} 21. Rxd2 {[%clk 0:00:13]}  Nb4 {[%clk 0:00:11]} 22. Qd1 {[%clk 0:00:12]}  Nxa2+ {[%clk 0:00:10]} 23. Kb1 {[%clk 0:00:13]}  Rxd2 {[%clk 0:00:10]} 24. Qxd2 {[%clk 0:00:13]}  Rd8 {[%clk 0:00:11]} 25. Qe1 {[%clk 0:00:10]}  c5 {[%clk 0:00:10]} 26. Kxa2 {[%clk 0:00:10]}  c4 {[%clk 0:00:11]} 27. Bf3 {[%clk 0:00:06]}  Bxf3 {[%clk 0:00:09]} 28. Rxf3 {[%clk 0:00:06]}  h5 {[%clk 0:00:08]} 29. gxh6+ {[%clk 0:00:06]}  Kh8 {[%clk 0:00:08]} 30. Rf2 {[%clk 0:00:06]}  Qb6 {[%clk 0:00:07]} 31. Kb1 {[%clk 0:00:04]}  b4 {[%clk 0:00:07]} 32. Rd2 {[%clk 0:00:04]}  Rb8 {[%clk 0:00:08]} 33. Nd7 {[%clk 0:00:03]}  Qa5 {[%clk 0:00:07]} 34. Nxb8 {[%clk 0:00:03]}  b3 {[%clk 0:00:07]} 0-1


[Site "https://www.chess.com"]

[Event "Titled Tuesday Blitz April 25 Early 2023"]
[White "Salman, Pavel"]
[Black "Pavlidis, Anastasios"]
[WhiteFideId "24153753"]
[BlackFideId "4208404"]
[WhiteElo "2187"]
[BlackElo "2210"]
[Result "1/2-1/2"]
[Round "03"]
[TimeControl "180+2"]
[Date "2023.04.25"]
[WhiteClock "0:02:13"]
[BlackClock "0:02:23"]

1. d4 {[%clk 0:03:00]}  d5 {[%clk 0:02:57]} 2. Nc3 {[%clk 0:03:00]}  Nf6 {[%clk 0:02:55]} 3. Bf4 {[%clk 0:03:00]}  e6 {[%clk 0:02:54]} 4. Nb5 {[%clk 0:02:59]}  Bd6 {[%clk 0:02:52]} 5. Nxd6+ {[%clk 0:03:00]}  cxd6 {[%clk 0:02:53]} 6. e3 {[%clk 0:03:01]}  Nc6 {[%clk 0:02:53]} 7. Bd3 {[%clk 0:03:00]}  e5 {[%clk 0:02:53]} 8. dxe5 {[%clk 0:02:59]}  dxe5 {[%clk 0:02:54]} 9. Bg5 {[%clk 0:02:59]}  h6 {[%clk 0:02:54]} 10. Bxf6 {[%clk 0:02:59]}  Qxf6 {[%clk 0:02:54]} 11. c3 {[%clk 0:02:59]}  O-O {[%clk 0:02:54]} 12. Qa4 {[%clk 0:02:52]}  Bd7 {[%clk 0:02:52]} 13. Qa3 {[%clk 0:02:49]}  d4 {[%clk 0:02:50]} 14. cxd4 {[%clk 0:02:47]}  exd4 {[%clk 0:02:50]} 15. e4 {[%clk 0:02:43]}  Ne5 {[%clk 0:02:50]} 16. Ne2 {[%clk 0:02:43]}  Ng4 {[%clk 0:02:44]} 17. O-O {[%clk 0:02:40]}  Qh4 {[%clk 0:02:39]} 18. h3 {[%clk 0:02:37]}  Ne5 {[%clk 0:02:39]} 19. f4 {[%clk 0:02:31]}  Nxd3 {[%clk 0:02:33]} 20. Qxd3 {[%clk 0:02:32]}  Rad8 {[%clk 0:02:34]} 21. Nxd4 {[%clk 0:02:25]}  Bxh3 {[%clk 0:02:22]} 22. gxh3 {[%clk 0:02:20]}  Rxd4 {[%clk 0:02:21]} 23. Qxd4 {[%clk 0:02:10]}  Qg3+ {[%clk 0:02:21]} 24. Kh1 {[%clk 0:02:10]}  Qxh3+ {[%clk 0:02:21]} 25. Kg1 {[%clk 0:02:11]}  Qg3+ {[%clk 0:02:22]} 26. Kh1 {[%clk 0:02:12]}  Qh3+ {[%clk 0:02:22]} 27. Kg1 {[%clk 0:02:13]}  Qg3+ {[%clk 0:02:23]} 28. Kh1 {[%clk 0:02:13]}  Qh3+ {[%clk 0:02:23]} 1/2-1/2


[Site "https://www.chess.com"]

[Event "Titled Tuesday Blitz April 25 Early 2023"]
[White "Inepton_Fermion"]
[Black "Ordekalog"]
[WhiteElo "2317"]
[BlackElo "2500"]
[Result "1-0"]
[Round "03"]
[TimeControl "180+2"]
[Date "2023.04.25"]
[WhiteClock "0:00:17"]
[BlackClock "0:00:59"]

1. e4 {[%clk 0:03:00]}  c5 {[%clk 0:02:56]} 2. Nf3 {[%clk 0:03:01]}  Nc6 {[%clk 0:02:56]} 3. d4 {[%clk 0:03:02]}  cxd4 {[%clk 0:02:56]} 4. Nxd4 {[%clk 0:03:03]}  Qb6 {[%clk 0:02:57]} 5. Nb3 {[%clk 0:02:52]}  Nf6 {[%clk 0:02:56]} 6. Bd3 {[%clk 0:02:45]}  e6 {[%clk 0:02:56]} 7. Be3 {[%clk 0:02:43]}  Qc7 {[%clk 0:02:55]} 8. O-O {[%clk 0:02:40]}  Be7 {[%clk 0:02:54]} 9. Nc3 {[%clk 0:02:40]}  d6 {[%clk 0:02:53]} 10. f4 {[%clk 0:02:40]}  a6 {[%clk 0:02:52]} 11. Qe1 {[%clk 0:02:37]}  O-O {[%clk 0:02:51]} 12. Qg3 {[%clk 0:02:33]}  b5 {[%clk 0:02:50]} 13. a4 {[%clk 0:02:23]}  b4 {[%clk 0:02:48]} 14. Ne2 {[%clk 0:02:19]}  e5 {[%clk 0:02:47]} 15. f5 {[%clk 0:02:16]}  Rd8 {[%clk 0:02:40]} 16. c3 {[%clk 0:01:59]}  Rb8 {[%clk 0:02:37]} 17. c4 {[%clk 0:01:56]}  Na5 {[%clk 0:02:18]} 18. Nxa5 {[%clk 0:01:56]}  Qxa5 {[%clk 0:02:18]} 19. b3 {[%clk 0:01:56]}  Bb7 {[%clk 0:02:17]} 20. Qf3 {[%clk 0:01:48]}  Nd7 {[%clk 0:02:11]} 21. g4 {[%clk 0:01:43]}  Nc5 {[%clk 0:02:09]} 22. Bc2 {[%clk 0:01:43]}  h6 {[%clk 0:01:55]} 23. Rad1 {[%clk 0:01:42]}  Rdc8 {[%clk 0:01:54]} 24. Ng3 {[%clk 0:01:39]}  Bh4 {[%clk 0:01:43]} 25. Nh5 {[%clk 0:01:33]}  Qd8 {[%clk 0:01:37]} 26. f6 {[%clk 0:01:27]}  g5 {[%clk 0:01:32]} 27. Ng3 {[%clk 0:01:18]}  Ne6 {[%clk 0:01:30]} 28. Nf5 {[%clk 0:01:17]}  Qxf6 {[%clk 0:01:29]} 29. Nxh4 {[%clk 0:01:11]}  Qxf3 {[%clk 0:01:25]} 30. Nxf3 {[%clk 0:01:12]}  Rd8 {[%clk 0:01:21]} 31. Rd2 {[%clk 0:01:09]}  Kf8 {[%clk 0:01:19]} 32. Rfd1 {[%clk 0:01:09]}  Ke7 {[%clk 0:01:20]} 33. Kg2 {[%clk 0:01:04]}  Bc6 {[%clk 0:01:17]} 34. Ng1 {[%clk 0:01:03]}  h5 {[%clk 0:01:13]} 35. Ne2 {[%clk 0:00:48]}  hxg4 {[%clk 0:01:12]} 36. Ng3 {[%clk 0:00:49]}  Nf4+ {[%clk 0:01:11]} 37. Kh1 {[%clk 0:00:42]}  Ke6 {[%clk 0:01:08]} 38. Nf5 {[%clk 0:00:41]}  d5 {[%clk 0:01:06]} 39. cxd5+ {[%clk 0:00:41]}  Nxd5 {[%clk 0:01:06]} 40. exd5+ {[%clk 0:00:41]}  Rxd5 {[%clk 0:01:05]} 41. Rxd5 {[%clk 0:00:37]}  Bxd5+ {[%clk 0:01:05]} 42. Kg1 {[%clk 0:00:36]}  Rc8 {[%clk 0:01:04]} 43. Bb1 {[%clk 0:00:25]}  e4 {[%clk 0:01:00]} 44. Rxd5 {[%clk 0:00:23]}  Rc3 {[%clk 0:01:00]} 45. Bxe4 {[%clk 0:00:18]}  Rxb3 {[%clk 0:00:59]} 46. Nd4+ {[%clk 0:00:17]} 1-0


[Site "https://www.chess.com"]

[Event "Titled Tuesday Blitz April 25 Early 2023"]
[White "Escanor89"]
[Black "Mihajlovskij"]
[WhiteElo "2496"]
[BlackElo "2311"]
[Result "1-0"]
[Round "03"]
[TimeControl "180+2"]
[Date "2023.04.25"]
[WhiteClock "0:00:57"]
[BlackClock "0:01:21"]

1. e4 {[%clk 0:03:00]}  c5 {[%clk 0:02:44]} 2. Nf3 {[%clk 0:03:00]}  Nc6 {[%clk 0:02:44]} 3. Bb5 {[%clk 0:02:58]}  g6 {[%clk 0:02:44]} 4. Bxc6 {[%clk 0:02:58]}  dxc6 {[%clk 0:02:44]} 5. O-O {[%clk 0:02:57]}  Bg7 {[%clk 0:02:45]} 6. d3 {[%clk 0:02:57]}  e5 {[%clk 0:02:45]} 7. h3 {[%clk 0:02:55]}  Qe7 {[%clk 0:02:44]} 8. Nc3 {[%clk 0:02:52]}  Nf6 {[%clk 0:02:43]} 9. Be3 {[%clk 0:02:52]}  O-O {[%clk 0:02:43]} 10. Qd2 {[%clk 0:02:52]}  Nd7 {[%clk 0:02:36]} 11. Bh6 {[%clk 0:02:51]}  b6 {[%clk 0:02:35]} 12. Nh2 {[%clk 0:02:45]}  f6 {[%clk 0:02:28]} 13. Rae1 {[%clk 0:02:44]}  Ba6 {[%clk 0:02:27]} 14. b3 {[%clk 0:02:43]}  Rad8 {[%clk 0:02:25]} 15. Nd1 {[%clk 0:02:29]}  Rf7 {[%clk 0:02:21]} 16. Bxg7 {[%clk 0:02:28]}  Kxg7 {[%clk 0:02:21]} 17. Ng4 {[%clk 0:02:21]}  Rdf8 {[%clk 0:02:13]} 18. Qh6+ {[%clk 0:02:10]}  Kh8 {[%clk 0:02:13]} 19. f4 {[%clk 0:02:07]}  exf4 {[%clk 0:01:58]} 20. Qxf4 {[%clk 0:02:04]}  Ne5 {[%clk 0:01:57]} 21. Nh6 {[%clk 0:02:02]}  Rg7 {[%clk 0:01:55]} 22. Ne3 {[%clk 0:01:59]}  Bc8 {[%clk 0:01:53]} 23. Re2 {[%clk 0:01:40]}  a5 {[%clk 0:01:39]} 24. Ref2 {[%clk 0:01:29]}  b5 {[%clk 0:01:38]} 25. Qh4 {[%clk 0:01:27]}  g5 {[%clk 0:01:34]} 26. Qg3 {[%clk 0:01:23]}  Qe8 {[%clk 0:01:31]} 27. Rxf6 {[%clk 0:01:08]}  Rxf6 {[%clk 0:01:27]} 28. Rxf6 {[%clk 0:01:09]}  Rg6 {[%clk 0:01:28]} 29. Rxg6 {[%clk 0:01:04]}  Nxg6 {[%clk 0:01:29]} 30. Qxg5 {[%clk 0:01:03]}  Be6 {[%clk 0:01:27]} 31. Qxc5 {[%clk 0:01:02]}  Kg7 {[%clk 0:01:24]} 32. Nef5+ {[%clk 0:00:59]}  Kh8 {[%clk 0:01:21]} 33. Qc3+ {[%clk 0:00:57]} 1-0


[Site "https://www.chess.com"]